[Event "Krakow Championship-B 2022"]
[Site "Krakow"]
[Date "2022.06.26"]
[Round "2.7"]
[White "Zamekhovskiy, Yevgen"]
[Black "Zarebska, Lena"]
[Result "1-0"]
[ECO "A43"]
[WhiteElo "1926"]
[BlackElo "1829"]
[Annotator "NA RC"]
[PlyCount "87"]
[EventDate "2022.06.25"]
[EventType "swiss"]
[EventCountry "POL"]
[SourceTitle "playchess.com"]
[Source "ChessBase"]
[SourceQuality "1"]
[TimeControl "40/5400+30:1800+30"]

1. d4 {[%emt 0:00:07]} Nf6 {[%emt 0:00:05]} 2. Nf3 {[%emt 0:00:09]} c5 {[%emt 0:00:05]} 3. d5 {[%emt 0:00:03]} b5 {[%emt 0:00:05]} 4. c4 {[%emt 0:00:03]} g6 {[%emt 0:00:04]} 5. Qc2 {[%emt 0:00:54]} Bg7 {[%emt 0:00:10]} 6. e4 {[%emt 0:00:05]} bxc4 {[%emt 0:00:14]} 7. Bxc4 {[%emt 0:00:14]} d6 {[%emt 0:00:07]} 8. Nc3 {[%emt 0:00:11]} O-O {[%emt 0:00:07]} 9. O-O {[%emt 0:00:19]} Bg4 {[%emt 0:05:16]} 10. Nd2 {[%emt 0:00:53]} Qa5 {[%emt 0:00:43]} 11. h3 {[%emt 0:02:44]} Bc8 {[%emt 0:00:06]} 12. Be2 {[%emt 0:00:56]} Ba6 {[%emt 0:01:07]} 13. Nc4 {[%emt 0:00:13]} Qb4 {[%emt 0:01:33]} 14. a3 {[%emt 0:07:02]} Qb7 {[%emt 0:00:10]} 15. Bg5 {[%emt 0:07:21]} h6 {[%emt 0:02:03]} 16. Bh4 {[%emt 0:01:25]} Re8 {[%emt 0:07:47]} 17. Rab1 {[%emt 0:13:42]} Qc7 {[%emt 0:13:04]} 18. Qa4 {[%emt 0:06:02]} g5 {[%emt 0:02:01]} 19. Bg3 {[%emt 0:00:44]} Bxc4 {[%emt 0:00:20]} 20. Bxc4 {[%emt 0:01:13]} a6 {[%emt 0:03:09]} 21. Qd1 {[%emt 0:07:50]} Nbd7 {[%emt 0:03:04]} 22. Qe2 {[%emt 0:04:43]} Reb8 {[%emt 0:04:02]} 23. Bxa6 {[%emt 0:05:19]} Nh5 {[%emt 0:12:44]} 24. Qxh5 {[%emt 0:14:09]} Rxa6 {[%emt 0:00:04]} 25. f4 {[%emt 0:01:31]} Nf6 {[%emt 0:01:11]} 26. Qe2 {[%emt 0:00:19]} Qb7 {[%emt 0:01:07]} 27. fxg5 {[%emt 0:02:43]} hxg5 {[%emt 0:00:04]} 28. e5 {[%emt 0:00:01]} dxe5 {[%emt 0:01:36]} 29. Bxe5 {[%emt 0:02:49]} Re8 {[%emt 0:02:33]} 30. Rbd1 {[%emt 0:01:36]} Nd7 {[%emt 0:03:22]} 31. Bxg7 {[%emt 0:01:29]} Kxg7 {[%emt 0:00:04]} 32. d6 {[%emt 0:02:18]} Rb6 {[%emt 0:02:33]} 33. Qh5 {[%emt 0:00:45]} Ne5 {[%emt 0:02:01]} 34. Qxg5+ {[%emt 0:02:49]} Ng6 {[%emt 0:00:06]} 35. h4 {[%emt 0:01:58]} exd6 {[%emt 0:01:53]} 36. Qf6+ {[%emt 0:01:32]} Kg8 {[%emt 0:00:30]} 37. h5 {[%emt 0:04:29]} Rxb2 {[%emt 0:00:47]} 38. Rf3 {[%emt 0:03:27]} Re6 {[%emt 0:01:31]} 39. Qd8+ {[%emt 0:00:07]} Kg7 {[%emt 0:00:21]} 40. Rg3 {[%emt 0:03:50]} Re3 {[%emt 0:02:42]} 41. Qg5 {[%emt 0:30:58]} Rxg3 {[%emt 0:33:47]} 42. Qxg3 {[%emt 0:00:01]} Rb3 {[%emt 0:00:48]} 43. hxg6 {[%emt 0:00:14]} fxg6 {[%emt 0:00:04]} 44. Rxd6 {[%emt 0:00:14]} 1-0

[Event "Krakow Championship-B 2022"]
[Site "Krakow"]
[Date "2022.06.26"]
[Round "2.8"]
[White "Owoc, Jakub"]
[Black "Budkiewicz, Magdalena"]
[Result "1/2-1/2"]
[ECO "E77"]
[WhiteElo "1741"]
[BlackElo "1916"]
[Annotator "NA RC"]
[PlyCount "91"]
[EventDate "2022.06.25"]
[EventType "swiss"]
[EventCountry "POL"]
[SourceTitle "playchess.com"]
[Source "ChessBase"]
[SourceQuality "1"]
[TimeControl "40/5400+30:1800+30"]

1. d4 {[%emt 0:00:03]} Nf6 {[%emt 0:00:12]} 2. c4 {[%emt 0:00:06]} g6 {[%emt 0:00:27]} 3. Nc3 {[%emt 0:00:07]} Bg7 {[%emt 0:00:22]} 4. e4 {[%emt 0:00:06]} d6 {[%emt 0:00:48]} 5. f4 {[%emt 0:00:05]} O-O {[%emt 0:02:50]} 6. Nf3 {[%emt 0:00:10]} c5 {[%emt 0:04:25]} 7. d5 {[%emt 0:00:06]} e6 {[%emt 0:12:12]} 8. Be2 {[%emt 0:00:53]} Re8 {[%emt 0:02:43]} 9. e5 {[%emt 0:19:08]} dxe5 {[%emt 0:04:03]} 10. fxe5 {[%emt 0:00:09]} Ng4 {[%emt 0:01:02]} 11. Bg5 {[%emt 0:04:36]} Qa5 {[%emt 0:06:24]} 12. O-O {[%emt 0:04:50]} Nxe5 {[%emt 0:08:30]} 13. Nb5 {[%emt 0:00:37]} Qb6 {[%emt 0:17:08]} 14. a4 {[%emt 0:02:01]} a5 {[%emt 0:00:44]} 15. d6 {[%emt 0:00:56]} Nxf3+ {[%emt 0:03:45]} 16. Rxf3 {[%emt 0:00:30]} Bd4+ {[%emt 0:01:53]} 17. Kh1 {[%emt 0:00:59]} Na6 {[%emt 0:00:57]} 18. Bf6 {[%emt 0:02:27]} Bd7 {[%emt 0:04:10]} 19. Bxd4 {[%emt 0:11:32]} cxd4 {[%emt 0:00:04]} 20. Qxd4 {[%emt 0:00:06]} Qxd4 {[%emt 0:00:23]} 21. Nxd4 {[%emt 0:00:01]} Nc5 {[%emt 0:01:34]} 22. Nb5 {[%emt 0:04:15]} Bc6 {[%emt 0:10:48]} 23. Re3 {[%emt 0:06:36]} Red8 {[%emt 0:00:39]} 24. Re5 {[%emt 0:00:23]} b6 {[%emt 0:04:11]} 25. Bf3 {[%emt 0:00:58]} Bxf3 {[%emt 0:00:40]} 26. gxf3 {[%emt 0:00:06]} Rac8 {[%emt 0:00:19]} 27. Re3 {[%emt 0:01:57]} Nb7 {[%emt 0:02:01]} 28. Rd1 {[%emt 0:06:15]} Rxc4 {[%emt 0:00:45]} 29. b3 {[%emt 0:00:20]} Rc6 {[%emt 0:01:04]} 30. Red3 {[%emt 0:00:05]} Rd7 {[%emt 0:02:06]} 31. Kg2 {[%emt 0:02:26]} Kg7 {[%emt 0:00:33]} 32. f4 {[%emt 0:00:31]} Kf6 {[%emt 0:01:56]} 33. Kf3 {[%emt 0:00:03]} e5 {[%emt 0:02:56]} 34. fxe5+ {[%emt 0:03:19]} Kxe5 {[%emt 0:00:11]} 35. Re1+ {[%emt 0:00:32]} Kf6 {[%emt 0:00:10]} 36. Red1 {[%emt 0:00:04]} g5 {[%emt 0:01:23]} 37. h4 {[%emt 0:00:41]} h6 {[%emt 0:00:39]} 38. Rd5 {[%emt 0:01:38]} Rc5 {[%emt 0:02:18]} 39. Ke4 {[%emt 0:02:02]} Kg6 {[%emt 0:01:56]} 40. Rh1 {[%emt 0:03:51]} Rc2 {[%emt 0:00:45]} 41. hxg5 {[%emt 0:31:40]} hxg5 {[%emt 0:30:11]} 42. Rh8 {[%emt 0:00:04]} f5+ {[%emt 0:00:00]} 43. Kd3 {[%emt 0:00:00]} Rc6 {[%emt 0:00:00]} 44. Rg8+ {[%emt 0:00:00]} Kh6 {[%emt 0:00:00]} 45. Rf8 {[%emt 0:00:00]} f4 {[%emt 0:00:00]} 46. Rff5 {[%emt 0:00:00]} 1/2-1/2

[Event "Krakow Championship-B 2022"]
[Site "Krakow"]
[Date "2022.06.26"]
[Round "2.9"]
[White "Czaplak, Lukasz"]
[Black "Klementys, Jerzy"]
[Result "0-1"]
[ECO "B92"]
[WhiteElo "1905"]
[BlackElo "1614"]
[Annotator "NA RC"]
[PlyCount "114"]
[EventDate "2022.06.25"]
[EventType "swiss"]
[EventCountry "POL"]
[SourceTitle "playchess.com"]
[Source "ChessBase"]
[SourceQuality "1"]
[TimeControl "40/5400+30:1800+30"]

1. e4 {[%emt 0:00:03]} c5 {[%emt 0:00:01]} 2. Nf3 {[%emt 0:00:04]} d6 {[%emt 0:00:23]} 3. d4 {[%emt 0:00:05]} cxd4 {[%emt 0:00:09]} 4. Nxd4 {[%emt 0:00:05]} Nf6 {[%emt 0:00:07]} 5. Nc3 {[%emt 0:00:03]} a6 {[%emt 0:00:07]} 6. Be2 {[%emt 0:00:04]} e5 {[%emt 0:00:10]} 7. Nb3 {[%emt 0:00:03]} Be6 {[%emt 0:00:21]} 8. O-O {[%emt 0:00:05]} Be7 {[%emt 0:00:05]} 9. f4 {[%emt 0:04:34]} Qc7 {[%emt 0:00:03]} 10. f5 {[%emt 0:04:00]} Bc4 {[%emt 0:02:15]} 11. Bxc4 {[%emt 0:06:00]} Qxc4 {[%emt 0:00:50]} 12. Qd3 {[%emt 0:05:21]} Qc6 {[%emt 0:04:46]} 13. Bg5 {[%emt 0:05:47]} Nbd7 {[%emt 0:00:27]} 14. Kh1 {[%emt 0:02:30]} Rc8 {[%emt 0:05:36]} 15. Rad1 {[%emt 0:11:48]} b5 {[%emt 0:01:49]} 16. a3 {[%emt 0:01:08]} h6 {[%emt 0:02:29]} 17. Bh4 {[%emt 0:04:15]} Qc7 {[%emt 0:11:08]} 18. Rd2 {[%emt 0:06:01]} O-O {[%emt 0:00:58]} 19. Bxf6 {[%emt 0:01:25]} Nxf6 {[%emt 0:00:03]} 20. Qf3 {[%emt 0:08:44]} Qb6 {[%emt 0:03:25]} 21. g4 {[%emt 0:03:29]} a5 {[%emt 0:00:12]} 22. Rg1 {[%emt 0:03:11]} b4 {[%emt 0:00:09]} 23. axb4 {[%emt 0:00:50]} axb4 {[%emt 0:00:02]} 24. Nd1 {[%emt 0:02:27]} Qb7 {[%emt 0:02:37]} 25. Nf2 {[%emt 0:02:35]} Nh7 {[%emt 0:02:11]} 26. Nh3 {[%emt 0:00:40]} Ng5 {[%emt 0:00:28]} 27. Nxg5 {[%emt 0:00:09]} Bxg5 {[%emt 0:00:02]} 28. Re2 {[%emt 0:01:57]} Rfd8 {[%emt 0:04:11]} 29. Rd1 {[%emt 0:00:35]} Qa8 {[%emt 0:00:45]} 30. Ra1 {[%emt 0:01:17]} Qb7 {[%emt 0:03:51]} 31. Rd1 {[%emt 0:02:39]} Ra8 {[%emt 0:01:06]} 32. Rd5 {[%emt 0:05:33]} Qb6 {[%emt 0:03:56]} 33. Qd3 {[%emt 0:02:20]} Ra2 {[%emt 0:06:12]} 34. Rb5 {[%emt 0:01:01]} Qa7 {[%emt 0:00:21]} 35. c4 {[%emt 0:05:30]} bxc3 {[%emt 0:01:00]} 36. Qxc3 {[%emt 0:01:13]} Rb8 {[%emt 0:04:03]} 37. Rxb8+ {[%emt 0:01:00]} Qxb8 {[%emt 0:00:20]} 38. Kg2 {[%emt 0:01:43]} Ra4 {[%emt 0:01:18]} 39. h3 {[%emt 0:05:06]} Rb4 {[%emt 0:07:33]} 40. Nc1 {[%emt 0:01:54]} Qb7 {[%emt 0:02:50]} 41. Kf3 {[%emt 0:32:56]} d5 {[%emt 0:34:26]} 42. exd5 {[%emt 0:00:00]} Qxd5+ {[%emt 0:00:00]} 43. Kg3 {[%emt 0:00:00]} Rc4 {[%emt 0:00:00]} 44. Qd3 {[%emt 0:00:00]} Bf4+ {[%emt 0:00:00]} 45. Kf2 {[%emt 0:00:00]} Qc5+ {[%emt 0:00:00]} 46. Kg2 {[%emt 0:00:00]} Rxc1 {[%emt 0:00:00]} 47. Rf2 {[%emt 0:00:00]} Qc6+ {[%emt 0:00:00]} 48. Qf3 {[%emt 0:00:00]} Qxf3+ {[%emt 0:00:00]} 49. Kxf3 {[%emt 0:00:00]} Rc4 {[%emt 0:00:00]} 50. Re2 {[%emt 0:00:00]} Rb4 {[%emt 0:00:00]} 51. Rc2 {[%emt 0:00:00]} Rb3+ {[%emt 0:00:00]} 52. Ke4 {[%emt 0:00:00]} Rxh3 {[%emt 0:00:00]} 53. Kd5 {[%emt 0:00:00]} Rd3+ {[%emt 0:00:00]} 54. Kc4 {[%emt 0:00:00]} Rd2 {[%emt 0:00:00]} 55. Rxd2 {[%emt 0:00:00]} Bxd2 {[%emt 0:00:00]} 56. b4 {[%emt 0:00:00]} f6 {[%emt 0:00:00]} 57. b5 {[%emt 0:00:00]} Be3 {[%emt 0:00:00]} 0-1

[Event "Krakow Championship-B 2022"]
[Site "Krakow"]
[Date "2022.06.26"]
[Round "2.10"]
[White "Evenshaug, Amadeus Hestvik"]
[Black "Cichon, Jakub"]
[Result "0-1"]
[ECO "A01"]
[WhiteElo "1785"]
[BlackElo "1884"]
[Annotator "NA RC"]
[PlyCount "70"]
[EventDate "2022.06.25"]
[EventType "swiss"]
[EventCountry "POL"]
[SourceTitle "playchess.com"]
[Source "ChessBase"]
[SourceQuality "1"]
[TimeControl "40/5400+30:1800+30"]

1. b3 {[%emt 0:00:06]} b6 {[%emt 0:01:16]} 2. Bb2 {[%emt 0:00:09]} Bb7 {[%emt 0:00:05]} 3. Nf3 {[%emt 0:00:38]} Nf6 {[%emt 0:00:32]} 4. e3 {[%emt 0:01:54]} g6 {[%emt 0:01:08]} 5. c4 {[%emt 0:01:03]} Bg7 {[%emt 0:00:38]} 6. d4 {[%emt 0:03:29]} e6 {[%emt 0:05:29]} 7. Be2 {[%emt 0:06:38]} O-O {[%emt 0:00:56]} 8. Nbd2 {[%emt 0:01:31]} Qe7 {[%emt 0:05:33]} 9. Qc2 {[%emt 0:05:34]} d5 {[%emt 0:01:50]} 10. a4 {[%emt 0:03:05]} Rc8 {[%emt 0:06:41]} 11. c5 {[%emt 0:13:46]} a5 {[%emt 0:11:16]} 12. O-O {[%emt 0:06:01]} bxc5 {[%emt 0:09:07]} 13. dxc5 {[%emt 0:00:53]} Nfd7 {[%emt 0:04:30]} 14. Ba3 {[%emt 0:13:34]} c6 {[%emt 0:03:08]} 15. Ra2 {[%emt 0:01:22]} Ba6 {[%emt 0:00:38]} 16. Bxa6 {[%emt 0:06:09]} Nxa6 {[%emt 0:00:22]} 17. Rc1 {[%emt 0:00:54]} Rcb8 {[%emt 0:08:22]} 18. Nd4 {[%emt 0:07:41]} Rc8 {[%emt 0:02:05]} 19. N2f3 {[%emt 0:05:01]} e5 {[%emt 0:02:16]} 20. Ne2 {[%emt 0:00:19]} Rab8 {[%emt 0:02:55]} 21. e4 {[%emt 0:06:41]} d4 {[%emt 0:06:49]} 22. Nd2 {[%emt 0:01:11]} Bh6 {[%emt 0:00:44]} 23. f4 {[%emt 0:03:10]} Nb4 {[%emt 0:04:49]} 24. Bxb4 {[%emt 0:00:10]} Rxb4 {[%emt 0:00:31]} 25. Nf3 d3 {[%emt 0:06:21]} 26. Qxd3 {[%emt 0:04:56]} Nxc5 {[%emt 0:00:07]} 27. Qe3 {[%emt 0:01:32]} Nxe4 {[%emt 0:00:37]} 28. Rc4 {[%emt 0:01:06]} exf4 {[%emt 0:01:45]} 29. Nxf4 {[%emt 0:01:24]} Rxc4 {[%emt 0:02:13]} 30. bxc4 {[%emt 0:00:05]} Bxf4 {[%emt 0:02:39]} 31. Qxf4 {[%emt 0:00:10]} Qc5+ {[%emt 0:01:16]} 32. Kf1 {[%emt 0:00:42]} Qxc4+ {[%emt 0:03:41]} 33. Re2 {[%emt 0:00:06]} Re8 {[%emt 0:01:26]} 34. Ne5 {[%emt 0:02:27]} Nd2+ {[%emt 0:01:48]} 35. Kf2 {[%emt 0:01:16]} Qxf4+ {[%emt 0:00:10]} 0-1

[Event "Krakow Championship-B 2022"]
[Site "Krakow"]
[Date "2022.06.26"]
[Round "2.11"]
[White "Hnatyshyn, Anastasiia"]
[Black "Skytte, Robert"]
[Result "1-0"]
[ECO "B15"]
[WhiteElo "1890"]
[BlackElo "1551"]
[Annotator "NA RC"]
[PlyCount "97"]
[EventDate "2022.06.25"]
[EventType "swiss"]
[EventCountry "POL"]
[SourceTitle "playchess.com"]
[Source "ChessBase"]
[SourceQuality "1"]
[TimeControl "40/5400+30:1800+30"]

1. e4 {[%emt 0:00:00]} c6 2. d4 d5 {[%emt 0:00:14]} 3. Nc3 {[%emt 0:00:19]} dxe4 {[%emt 0:00:06]} 4. Nxe4 {[%emt 0:00:04]} Nf6 {[%emt 0:00:09]} 5. Nxf6+ {[%emt 0:00:07]} exf6 {[%emt 0:00:05]} 6. Nf3 {[%emt 0:00:07]} Bd6 {[%emt 0:00:05]} 7. Bd3 {[%emt 0:00:31]} O-O {[%emt 0:00:17]} 8. O-O {[%emt 0:00:10]} Re8 {[%emt 0:00:26]} 9. h3 {[%emt 0:00:39]} Nd7 {[%emt 0:00:20]} 10. c3 {[%emt 0:03:04]} Nf8 {[%emt 0:00:22]} 11. Qc2 {[%emt 0:02:00]} Be6 {[%emt 0:00:19]} 12. Be3 {[%emt 0:02:01]} Qd7 {[%emt 0:00:10]} 13. Rfe1 {[%emt 0:16:12]} Ng6 {[%emt 0:02:30]} 14. Bf1 {[%emt 0:15:42]} Bd5 {[%emt 0:00:59]} 15. Nd2 {[%emt 0:00:46]} Bc7 {[%emt 0:01:19]} 16. c4 {[%emt 0:03:38]} Be6 {[%emt 0:00:21]} 17. Rad1 {[%emt 0:03:38]} Nh4 {[%emt 0:00:27]} 18. b3 {[%emt 0:16:13]} Nxg2 {[%emt 0:01:55]} 19. Bxg2 {[%emt 0:00:46]} Bxh3 {[%emt 0:00:31]} 20. Nf1 {[%emt 0:03:45]} Qg4 {[%emt 0:01:46]} 21. Ng3 {[%emt 0:00:16]} Bxg3 {[%emt 0:00:21]} 22. fxg3 {[%emt 0:00:18]} Qxg3 {[%emt 0:00:19]} 23. Qf2 {[%emt 0:00:33]} Qg4 {[%emt 0:00:38]} 24. Qf3 {[%emt 0:00:29]} Qxg2+ {[%emt 0:00:36]} 25. Qxg2 {[%emt 0:00:06]} Bxg2 {[%emt 0:00:12]} 26. Kxg2 {[%emt 0:00:03]} h5 {[%emt 0:00:53]} 27. Kf3 {[%emt 0:01:48]} f5 {[%emt 0:00:13]} 28. d5 {[%emt 0:01:47]} cxd5 {[%emt 0:00:32]} 29. cxd5 {[%emt 0:01:27]} a6 {[%emt 0:00:15]} 30. Bb6 {[%emt 0:00:54]} Kf8 {[%emt 0:00:59]} 31. d6 {[%emt 0:00:25]} Rad8 {[%emt 0:00:13]} 32. Bxd8 {[%emt 0:00:22]} Rxd8 {[%emt 0:00:05]} 33. Kf4 {[%emt 0:00:11]} g6 {[%emt 0:00:10]} 34. d7 {[%emt 0:00:07]} b5 {[%emt 0:00:08]} 35. Kg5 {[%emt 0:00:35]} a5 {[%emt 0:00:20]} 36. Kf6 {[%emt 0:00:41]} a4 {[%emt 0:00:08]} 37. Re7 {[%emt 0:00:39]} axb3 {[%emt 0:00:10]} 38. axb3 {[%emt 0:00:14]} b4 {[%emt 0:00:07]} 39. Rxf7+ {[%emt 0:00:06]} Kg8 {[%emt 0:00:05]} 40. Ke7 {[%emt 0:00:12]} h4 {[%emt 0:00:08]} 41. Kxd8 {[%emt 0:30:13]} Kxf7 {[%emt 0:30:17]} 42. Kc7 {[%emt 0:00:33]} f4 {[%emt 0:00:08]} 43. d8=Q {[%emt 0:00:10]} f3 {[%emt 0:00:14]} 44. Qxh4 {[%emt 0:00:37]} f2 {[%emt 0:00:12]} 45. Rd7+ {[%emt 0:00:24]} Ke6 {[%emt 0:00:19]} 46. Qe4+ {[%emt 0:01:03]} Kf6 {[%emt 0:00:11]} 47. Rd6+ {[%emt 0:00:13]} Kg5 {[%emt 0:00:14]} 48. Rxg6+ {[%emt 0:00:06]} Kh5 {[%emt 0:00:17]} 49. Qg4# {[%emt 0:00:06]} 1-0

[Event "Krakow Championship-B 2022"]
[Site "Krakow"]
[Date "2022.06.26"]
[Round "2.12"]
[White "Khandhar, Kaushal"]
[Black "Garsky, Vladyslav"]
[Result "1-0"]
[ECO "A45"]
[WhiteElo "1936"]
[BlackElo "1860"]
[Annotator "NA RC"]
[PlyCount "39"]
[EventDate "2022.06.25"]
[EventType "swiss"]
[EventCountry "POL"]
[SourceTitle "playchess.com"]
[Source "ChessBase"]
[SourceQuality "1"]
[TimeControl "40/5400+30:1800+30"]

1. d4 {[%emt 0:00:03]} Nf6 {[%emt 0:00:21]} 2. Nc3 {[%emt 0:00:16]} d5 {[%emt 0:00:48]} 3. Bf4 {[%emt 0:00:11]} e6 {[%emt 0:00:31]} 4. Nb5 {[%emt 0:06:08]} Na6 {[%emt 0:00:09]} 5. e3 {[%emt 0:00:07]} c6 {[%emt 0:01:17]} 6. Nc3 {[%emt 0:00:02]} Qa5 {[%emt 0:00:57]} 7. a3 {[%emt 0:07:05]} c5 {[%emt 0:18:59]} 8. dxc5 {[%emt 0:06:17]} Qxc5 {[%emt 0:00:27]} 9. Nf3 {[%emt 0:03:27]} Bd6 {[%emt 0:01:43]} 10. Bxa6 {[%emt 0:04:13]} bxa6 {[%emt 0:00:36]} 11. Bxd6 {[%emt 0:08:05]} Qxd6 {[%emt 0:00:59]} 12. Qd4 {[%emt 0:01:35]} O-O {[%emt 0:03:08]} 13. e4 e5 {[%emt 0:00:30]} 14. Nxe5 Re8 {[%emt 0:00:30]} 15. f4 Qb8 {[%emt 0:00:30]} 16. O-O-O dxe4 {[%emt 0:00:30]} 17. Nxe4 Nxe4 {[%emt 0:00:30]} 18. Qxe4 f6 {[%emt 0:00:30]} 19. Rd8 Qb5 {[%emt 0:00:30]} 20. Qd5+ 1-0

[Event "Krakow Championship-B 2022"]
[Site "Krakow"]
[Date "2022.06.26"]
[Round "3.1"]
[White "Szczurek, Krzysztof"]
[Black "Zamekhovskiy, Yevgen"]
[Result "1/2-1/2"]
[ECO "A05"]
[WhiteElo "2151"]
[BlackElo "1926"]
[Annotator "RC"]
[PlyCount "41"]
[EventDate "2022.06.25"]
[EventType "swiss"]
[EventCountry "POL"]
[SourceTitle "playchess.com"]
[Source "ChessBase"]
[SourceQuality "1"]
[TimeControl "40/5400+30:1800+30"]

1. Nf3 {[%emt 0:00:02]} Nf6 {[%emt 0:00:05]} 2. g3 {[%emt 0:00:09]} g6 {[%emt 0:00:03]} 3. Bg2 {[%emt 0:00:06]} Bg7 {[%emt 0:00:03]} 4. c4 {[%emt 0:00:10]} d6 {[%emt 0:00:08]} 5. O-O {[%emt 0:00:48]} O-O {[%emt 0:00:06]} 6. Nc3 {[%emt 0:00:27]} e5 {[%emt 0:00:07]} 7. b4 {[%emt 0:02:03]} e4 {[%emt 0:04:11]} 8. Nd4 {[%emt 0:02:06]} Nc6 {[%emt 0:06:50]} 9. Nxc6 {[%emt 0:01:56]} bxc6 {[%emt 0:00:07]} 10. d4 {[%emt 0:00:20]} Be6 {[%emt 0:10:12]} 11. Nxe4 {[%emt 0:09:19]} Nxe4 {[%emt 0:02:00]} 12. Bxe4 {[%emt 0:00:07]} Bxc4 {[%emt 0:00:11]} 13. Be3 {[%emt 0:05:46]} Rb8 {[%emt 0:06:16]} 14. Bxc6 {[%emt 0:05:34]} Rxb4 {[%emt 0:02:26]} 15. Bf3 {[%emt 0:03:43]} d5 {[%emt 0:01:44]} 16. Qc2 {[%emt 0:01:04]} Qd7 {[%emt 0:09:27]} 17. Rfb1 {[%emt 0:02:33]} Rfb8 {[%emt 0:03:05]} 18. Rxb4 {[%emt 0:02:20]} Rxb4 {[%emt 0:00:12]} 19. Rb1 {[%emt 0:01:07]} Qb5 {[%emt 0:01:07]} 20. Rxb4 {[%emt 0:00:47]} Qxb4 {[%emt 0:00:10]} 21. a4 {[%emt 0:01:02]} 1/2-1/2

[Event "Krakow Championship-B 2022"]
[Site "Krakow"]
[Date "2022.06.26"]
[Round "3.2"]
[White "Skomial, Mateusz"]
[Black "Hnatyshyn, Anastasiia"]
[Result "1-0"]
[ECO "B30"]
[WhiteElo "2063"]
[BlackElo "1890"]
[Annotator "NA RC"]
[PlyCount "103"]
[EventDate "2022.06.25"]
[EventType "swiss"]
[EventCountry "POL"]
[SourceTitle "playchess.com"]
[Source "ChessBase"]
[SourceQuality "1"]
[TimeControl "40/5400+30:1800+30"]

1. e4 {[%emt 0:00:02]} c5 {[%emt 0:00:06]} 2. Nf3 {[%emt 0:00:11]} Nc6 {[%emt 0:00:09]} 3. c4 {[%emt 0:00:08]} g6 {[%emt 0:00:18]} 4. d4 {[%emt 0:00:56]} cxd4 {[%emt 0:00:09]} 5. Nxd4 {[%emt 0:00:05]} Nf6 {[%emt 0:00:49]} 6. Nc3 {[%emt 0:01:07]} d6 {[%emt 0:01:01]} 7. Be2 {[%emt 0:03:51]} Bg7 {[%emt 0:00:15]} 8. Be3 {[%emt 0:00:50]} O-O {[%emt 0:02:44]} 9. h4 {[%emt 0:05:27]} h5 {[%emt 0:02:44]} 10. f3 {[%emt 0:02:21]} Qb6 {[%emt 0:11:44]} 11. Nxc6 {[%emt 0:14:20]} Qxe3 {[%emt 0:08:06]} 12. Nxe7+ {[%emt 0:01:26]} Kh7 {[%emt 0:00:09]} 13. Qd2 {[%emt 0:04:08]} Qc5 {[%emt 0:11:22]} 14. Nxc8 {[%emt 0:01:39]} Raxc8 {[%emt 0:00:06]} 15. Rd1 {[%emt 0:04:15]} Rcd8 {[%emt 0:10:23]} 16. Qg5 {[%emt 0:04:32]} Rfe8 {[%emt 0:07:23]} 17. a3 {[%emt 0:06:20]} Re5 {[%emt 0:04:18]} 18. Qd2 {[%emt 0:00:07]} Ree8 {[%emt 0:02:59]} 19. Kf1 {[%emt 0:02:38]} Ng8 {[%emt 0:05:56]} 20. Nd5 {[%emt 0:01:27]} Ne7 {[%emt 0:01:28]} 21. b4 {[%emt 0:02:34]} Qc8 {[%emt 0:00:38]} 22. g3 {[%emt 0:06:50]} Nc6 {[%emt 0:05:30]} 23. Kg2 {[%emt 0:03:28]} Nd4 {[%emt 0:01:23]} 24. Bd3 {[%emt 0:00:57]} Qd7 {[%emt 0:03:55]} 25. Bb1 {[%emt 0:03:50]} Rc8 {[%emt 0:01:48]} 26. Bd3 {[%emt 0:06:39]} Qe6 {[%emt 0:03:37]} 27. Rhe1 {[%emt 0:01:16]} Qd7 {[%emt 0:01:49]} 28. Qf2 {[%emt 0:00:39]} Qa4 {[%emt 0:07:04]} 29. Qa2 {[%emt 0:03:57]} Qd7 {[%emt 0:02:27]} 30. Bf1 {[%emt 0:02:50]} Qa4 {[%emt 0:02:25]} 31. Rd2 {[%emt 0:02:19]} Qd7 {[%emt 0:01:19]} 32. Re3 {[%emt 0:01:46]} Kh8 {[%emt 0:01:01]} 33. Red3 {[%emt 0:01:49]} Nc6 {[%emt 0:00:31]} 34. Nf4 {[%emt 0:00:49]} Bf8 {[%emt 0:01:00]} 35. c5 {[%emt 0:01:50]} Ne5 {[%emt 0:00:18]} 36. Rd5 {[%emt 0:01:41]} Kh7 {[%emt 0:00:39]} 37. Kf2 {[%emt 0:04:20]} Rcd8 {[%emt 0:00:34]} 38. Bh3 {[%emt 0:00:13]} Qc7 {[%emt 0:00:15]} 39. Nd3 {[%emt 0:02:43]} Nxd3+ {[%emt 0:00:48]} 40. R2xd3 {[%emt 0:00:08]} dxc5 {[%emt 0:00:29]} 41. Rd7 {[%emt 0:30:30]} Rxd7 {[%emt 0:30:21]} 42. Rxd7 {[%emt 0:00:06]} Qe5 {[%emt 0:00:14]} 43. Qxf7+ {[%emt 0:02:00]} Bg7 {[%emt 0:00:06]} 44. Bf1 {[%emt 0:01:43]} cxb4 {[%emt 0:01:15]} 45. axb4 {[%emt 0:00:07]} Qb2+ {[%emt 0:00:37]} 46. Be2 {[%emt 0:00:16]} Rc8 {[%emt 0:00:36]} 47. Rd6 {[%emt 0:01:59]} Rf8 {[%emt 0:00:37]} 48. Qxg6+ {[%emt 0:00:22]} Kg8 {[%emt 0:00:02]} 49. Rd7 {[%emt 0:00:00]} b5 {[%emt 0:00:00]} 50. f4 {[%emt 0:00:00]} a6 {[%emt 0:00:00]} 51. e5 {[%emt 0:00:00]} Qxe5 {[%emt 0:00:00]} 52. Bd3 {[%emt 0:00:00]} 1-0